fUST/lending_fUST_20240506
["ID","MTS","AMOUNT","RATE_DAILY","PERIOD"]
[326486046,1714993848433,-228.80277303,0.00016817,2]
[326486047,1714993848607,-500.0,0.00016817,2]
[326486048,1714993848617,-3300.93,0.00016817,2]
[326486049,1714993848626,-622.51,0.00016817,2]
[326486050,1714993848636,-892.06,0.00016817,2]
[326486051,1714993848646,-500.0,0.00016817,2]
[326486052,1714993848656,-540.17207191,0.00016817,2]
[326486053,1714993848666,-500.0,0.00016817,2]
[326486054,1714993848675,-500.0,0.00016817,2]
[326486055,1714993848685,-505.54100582,0.00016817,2]
[326486056,1714993848695,-500.0,0.00016817,2]
[326486057,1714993848704,-500.0,0.00016817,2]
[326486058,1714993848713,-500.0,0.00016817,2]
[326486059,1714993848724,-593.5592765,0.00016817,2]
[326486060,1714993848734,-500.0,0.00016817,2]
[326486061,1714993848743,-10922.43,0.00016817,2]
[326486062,1714993848752,-500.0,0.00016817,2]
[326486063,1714993848761,-500.0,0.00016817,2]
[326486064,1714993848770,-500.0,0.00016817,2]
[326486065,1714993848779,-500.0,0.00016817,2]
[326486066,1714993848789,-500.0,0.00016817,2]
[326486067,1714993848798,-500.0,0.00016817,2]
[326486068,1714993848807,-945.14,0.00016817,2]
[326486069,1714993848817,-500.0,0.00016817,2]
[326486070,1714993848826,-697.79,0.00016817,2]
[326486071,1714993848836,-1291.37,0.00016817,2]
[326486072,1714993848847,-500.0,0.00016817,2]
[326486073,1714993848856,-500.0,0.00016817,2]
[326486074,1714993848868,-500.0,0.00016817,2]
[326486075,1714993848877,-500.0,0.00016817,2]
[326486076,1714993848887,-631.86,0.00016817,2]
[326486077,1714993848896,-500.0,0.00016817,2]
[326486078,1714993848905,-500.0,0.00016817,2]
[326486079,1714993848915,-500.0,0.00016817,2]
[326486080,1714993848939,-300.0,0.00016817,2]
[326486081,1714993848949,-625.43,0.00016817,2]
[326486082,1714993848958,-653.27,0.00016817,2]
[326486083,1714993848968,-500.0,0.00016818,2]
[326486084,1714993848977,-500.0,0.00016818,2]
[326486085,1714993848987,-500.0,0.00016818,2]
[326486086,1714993848996,-500.0,0.00016818,2]
[326486087,1714993849005,-500.0,0.00016818,2]
[326486088,1714993849014,-500.0,0.00016818,2]
[326486089,1714993849023,-500.0,0.00016818,2]
[326486090,1714993849032,-500.0,0.00016818,2]
[326486091,1714993849042,-500.0,0.00016818,2]
[326486092,1714993849051,-500.0,0.00016818,2]
[326486093,1714993849060,-500.43031625,0.00016818,2]
[326486094,1714993849070,-544.41,0.00016818,2]
[326486095,1714993849080,-886.98,0.00016818,2]
[326486096,1714993849091,-500.0,0.00016818,2]
[326486097,1714993849103,-500.0,0.00016818,2]
[326486098,1714993849113,-621.71,0.00016818,2]
[326486099,1714993849122,-500.0,0.00016818,2]
[326486100,1714993849131,-500.0,0.00016818,2]
[326486101,1714993849141,-500.0,0.00016818,2]
[326486102,1714993849151,-662.39,0.00016818,2]
[326486103,1714993849160,-2173.11,0.00016818,2]
[326486104,1714993849169,-500.0,0.00016818,2]
[326486105,1714993849179,-608.4,0.00016818,2]
[326486106,1714993849189,-500.0,0.00016818,2]
[326486107,1714993849198,-898.62,0.00016818,2]
[326486108,1714993849208,-500.0,0.00016818,2]
[326486109,1714993849217,-500.0,0.00016818,2]
[326486110,1714993849226,-500.0,0.00016818,2]
[326486111,1714993849244,-500.0,0.00016818,2]
[326486112,1714993849253,-500.0,0.00016818,2]
[326486113,1714993849263,-500.0,0.00016818,2]
[326486114,1714993849277,-1690.52,0.00016818,2]
[326486115,1714993849287,-500.0,0.00016818,2]
[326486116,1714993849296,-577.75,0.00016818,2]
[326486117,1714993849306,-500.0,0.00016818,2]
[326486118,1714993849317,-500.0,0.00016818,2]
[326486119,1714993849326,-1071.2,0.00016818,2]
[326486120,1714993849336,-500.0,0.00016818,2]
[326486121,1714993849347,-500.0,0.00016818,2]
[326486122,1714993849356,-500.0,0.00016818,2]
[326486123,1714993849367,-500.0,0.00016818,2]
[326486124,1714993849377,-500.0,0.00016818,2]
[326486125,1714993849387,-500.0,0.00016818,2]
[326486126,1714993849396,-500.0,0.00016818,2]
[326486127,1714993849405,-593.61,0.00016818,2]
[326486128,1714993849415,-699.52,0.00016818,2]
[326486129,1714993849424,-500.0,0.00016818,2]
[326486130,1714993849433,-500.0,0.00016818,2]
[326486131,1714993849443,-500.0,0.00016818,2]
[326486132,1714993849452,-500.0,0.00016818,2]
[326486133,1714993849461,-500.0,0.00016818,2]
[326486134,1714993849470,-500.0,0.00016818,2]
[326486135,1714993849479,-500.0,0.00016818,2]
[326486136,1714993849489,-500.0,0.00016818,2]
[326486137,1714993849498,-500.0,0.00016818,2]
[326486138,1714993849507,-500.0,0.00016818,2]
[326486139,1714993849516,-500.0,0.00016818,2]
[326486140,1714993849527,-1137.42,0.00016818,2]
[326486141,1714993849536,-500.0,0.00016818,2]
[326486142,1714993849546,-1072.12,0.00016818,2]
[326486143,1714993849555,-500.0,0.00016818,2]
[326486144,1714993849564,-500.0,0.00016818,2]
[326486145,1714993849574,-627.7,0.00016818,2]
[326486146,1714993849583,-500.0,0.00016818,2]
[326486147,1714993849593,-500.0,0.00016818,2]
[326486148,1714993849603,-500.0,0.00016818,2]
[326486149,1714993849612,-680.36,0.00016818,2]
[326486150,1714993849621,-500.0,0.00016818,2]
[326486151,1714993849630,-500.0,0.00016818,2]
[326486152,1714993849639,-390.98772267,0.00016818,2]
[326486153,1714993849649,-500.0,0.00016818,2]
[326486154,1714993849658,-500.0,0.00016818,2]
[326486155,1714993849667,-621.0,0.00016818,2]
[326486156,1714993849676,-575.24,0.00016818,2]
[326486157,1714993849686,-500.0,0.00016818,2]
[326486158,1714993849695,-181.30235932,0.00016818,2]
[326486159,1714993849704,-4622.44,0.00016818,2]
[326486160,1714993849714,-500.0,0.00016818,2]
[326486161,1714993849723,-1880.58,0.00016818,2]
[326486162,1714993849732,-687.68,0.00016818,2]
[326486163,1714993849742,-535.56803355,0.00016818,2]
[326486164,1714993849751,-151.0,0.00016818,2]
[326486165,1714993849760,-151.0,0.00016818,2]
[326486166,1714993849771,-500.0,0.00016818,2]
[326486167,1714993849780,-500.0,0.00016818,2]
[326486168,1714993849788,-774.59,0.00016818,2]
[326486169,1714993849799,-500.0,0.00016818,2]
[326486170,1714993849808,-276.29159395,0.00016818,2]
[326486171,1714993849817,-577.70560518,0.00016818,2]
[326486172,1714993849827,-500.0,0.00016818,2]
[326486173,1714993849836,-500.0,0.00016818,2]
[326486174,1714993849846,-1100.09538,0.00016818,2]
[326486175,1714993849856,-5061.618388,0.00016818,2]
[326486176,1714993849866,-1100.09538,0.00016818,2]
[326486177,1714993849875,-5061.618388,0.00016818,2]
[326486178,1714993849884,-151.0,0.00016818,2]
[326486179,1714993849893,-151.0,0.00016818,2]
[326486180,1714993849903,-151.0,0.00016818,2]
[326486181,1714993849912,-473.229971,0.00016818,2]
[326486182,1714993849921,-151.0,0.00016818,2]
[326486183,1714993849930,-473.229971,0.00016818,2]
[326486184,1714993849939,-151.0,0.00016818,2]
[326486185,1714993849948,-500.0,0.00016818,2]
[326486186,1714993849957,-151.0,0.00016818,2]
[326486187,1714993849967,-500.0,0.00016818,2]
[326486188,1714993849976,-589.93,0.00016818,2]
[326486189,1714993849986,-500.0,0.00016818,2]
[326486190,1714993849995,-151.0,0.00016818,2]
[326486191,1714993850004,-500.0,0.00016818,2]
[326486192,1714993850013,-500.0,0.00016818,2]
[326486193,1714993850022,-151.0,0.00016818,2]
[326486194,1714993850031,-500.0,0.00016818,2]
[326486195,1714993850041,-821.43,0.00016818,2]
[326486196,1714993850050,-271.761288,0.00016818,2]
[326486197,1714993850060,-271.761288,0.00016818,2]
[326486198,1714993850069,-754.480184,0.00016818,2]
[326486199,1714993850078,-500.0,0.00016818,2]
[326486200,1714993850088,-754.480184,0.00016818,2]
[326486201,1714993850098,-500.0,0.00016818,2]
[326486202,1714993850107,-365.434692,0.00016818,2]
[326486203,1714993850116,-365.434692,0.00016818,2]
[326486204,1714993850125,-969.71,0.00016818,2]
[326486205,1714993850135,-528.42,0.00016818,2]
[326486206,1714993850144,-151.0,0.00016818,2]
[326486207,1714993850153,-151.0,0.00016818,2]
[326486208,1714993850163,-151.0,0.00016818,2]
[326486209,1714993850173,-277.840666,0.00016818,2]
[326486210,1714993850189,-2309.682423,0.00016818,2]
[326486211,1714993850199,-2141.39547236,0.00016818,2]
[326486212,1714993850215,-168.28695064,0.00016818,2]
[326486213,1714993850224,-2309.682423,0.00016818,2]
[326486214,1714993850234,-2309.682423,0.00016818,2]
[326486215,1714993850243,-725.82,0.00016924,2]
[326486216,1714993850252,-725.82,0.00016924,2]
[326486217,1714993850262,-173.05560632,0.00016924,2]
[326486218,1714993850307,-360.22439368,0.00016924,2]
[326486219,1714993850318,-403.47188877,0.00016925,2]
[326486220,1714993850330,-500.0,0.00016925,2]
[326486221,1714993850340,-500.0,0.00016925,2]
[326486222,1714993850352,-1012.80371755,0.00016925,2]
[326486223,1714993850407,-500.0,0.00016816,2]
[326486224,1714993850417,-174.29628245,0.00016925,2]
[326486225,1714993850426,-500.99354642,0.00016925,2]
[326486226,1714993850435,-500.0,0.00016925,2]
[326486227,1714993850446,-500.0,0.00016925,2]
[326486228,1714993850455,-500.0,0.00016925,2]
[326486229,1714993850465,-384.53732113,0.00016925,2]
[326486230,1714993850497,-115.46267887,0.00016925,2]
[326486231,1714993850506,-508.09363551,0.00016925,2]
[326486232,1714993850516,-500.0,0.00016925,2]
[326486233,1714993850528,-240.44820259,0.00016925,2]
[326486234,1714993850539,-500.0,0.00016925,2]
[326486235,1714993850548,-500.0,0.00016925,2]
[326486236,1714993850558,-500.0,0.00016925,2]
[326486237,1714993850567,-500.0,0.00016925,2]
[326486238,1714993850576,-429.2642034,0.00016925,2]
[326486239,1714993850587,-500.0,0.00016925,2]
[326486240,1714993850596,-500.0,0.00016925,2]
[326486241,1714993850608,-500.0,0.00016925,2]
[326486242,1714993850619,-151.0,0.00016925,2]
[326486243,1714993850628,-271.761288,0.00016925,2]
[326486244,1714993850638,-271.761288,0.00016925,2]
[326486245,1714993850648,-754.480184,0.00016925,2]
[326486246,1714993850658,-754.480184,0.00016925,2]
[326486247,1714993850667,-365.434692,0.00016925,2]
[326486248,1714993850677,-365.434692,0.00016925,2]
[326486249,1714993850686,-2473.00195163,0.00017089,2]
[326486250,1714993883442,807.42946443,9.999e-05,2]
[326486251,1714993919739,154.73694719,9.999e-05,2]
[326486252,1714993922176,154.73694719,9.999e-05,2]
[326486253,1714993927209,16118.63883311,9.999e-05,2]
[326486254,1714993927922,154.73694719,9.999e-05,2]
[326486255,1714993934712,154.73694719,9.998e-05,2]
[326486256,1714993940416,154.73694719,9.999e-05,2]
[326486259,1714993946497,6465.97021754,9.999e-05,2]
[326486260,1714993949278,154.73694719,9.999e-05,2]
[326486261,1714993949547,1578.28854487,9.999e-05,2]
[326486262,1714993951298,154.73694719,9.999e-05,2]
[326486263,1714993957231,409.6661174,9.999e-05,2]
[326486264,1714993957365,154.73694719,9.999e-05,2]
[326486265,1714993957648,154.73694719,9.999e-05,2]
[326486266,1714993958399,154.73694719,9.999e-05,2]
[326486267,1714994268141,13093.00247232,9.999e-05,2]
[326486268,1714994278726,469.39449574,9.999e-05,2]
[326486269,1714994290500,309.44293175,0.00015971,2]
[326486270,1714994304612,584.11436245,9.999e-05,2]
[326486271,1714994305327,14296.26308849,0.00015761,2]
[326486272,1714994305369,6889.0,0.00015761,2]
[326486273,1714994381546,154.73694719,9.999e-05,2]
[326486276,1714994953456,-241.387251,0.00015475,2]
[326486277,1714994953908,-3054.9715797,0.00015508,2]
[326486278,1714994954639,-4987.83419244,0.00015508,2]
[326486293,1714995033216,-163.7450757,0.00015409,2]
[326486295,1714995033226,-379.61261198,0.00015409,2]
[326486296,1714995033236,-2574.68055422,0.00015507,2]
[326486299,1714995033249,-480.29102548,0.00015507,2]
[326486301,1714995033259,-1255.94234188,0.00015508,2]
[326486303,1714995033271,-361.8150045,0.00015508,2]
[326486305,1714995033283,-52675.76643802,0.00015508,2]
[326486307,1714995033294,-24900.0,0.00015509,2]
[326486309,1714995033304,-379.61261197,0.00015735,2]
[326486311,1714995033315,-1105.76117145,0.00015761,2]
[326486313,1714995033324,-299.306341,0.0001589,2]
[326486315,1714995033334,-202.82666,0.0001589,2]
[326486317,1714995033344,-165.9141139,0.00015973,2]
[326486318,1714995033354,-163.7450757,0.0001606,2]
[326486320,1714995033363,-500.0,0.00016438,2]
[326486323,1714995033374,-500.0,0.00016438,2]
[326486324,1714995033384,-500.0,0.00016438,2]
[326486326,1714995033393,-500.0,0.00016438,2]
[326486329,1714995033404,-1988.94133682,0.00016614,2]
[326486330,1714995033416,-500.0,0.00016698,2]
[326486333,1714995033427,-195.3556566,0.000167,2]
[326486335,1714995033437,-306.0,0.000167,2]
[326486337,1714995033447,-500.0,0.00016712,2]
[326486339,1714995033458,-502.01867704,0.00016712,2]
[326486340,1714995033468,-500.0,0.00016712,2]
[326486342,1714995033477,-500.0,0.00016712,2]
[326486344,1714995033487,-500.0,0.00016715,2]
[326486346,1714995033498,-500.87510614,0.00016715,2]
[326486348,1714995033509,-520.65,0.00016715,2]
[326486350,1714995033519,-14384.04,0.00016715,2]
[326486352,1714995033529,-2292.59,0.00016715,2]
[326486354,1714995033539,-1399.06,0.00016715,2]
[326486356,1714995033549,-10910.43,0.00016715,2]
[326486359,1714995033559,-980.05,0.00016715,2]
[326486361,1714995033570,-5000.0,0.000168,2]
[326486363,1714995033580,-6285.57,0.00016808,2]
[326486365,1714995033589,-500.0,0.0001681,2]
[326486367,1714995033603,-500.0,0.0001681,2]
[326486369,1714995033613,-813.64,0.0001681,2]
[326486371,1714995033624,-2432.65,0.0001681,2]
[326486372,1714995033633,-500.0,0.0001681,2]
[326486374,1714995033645,-500.0,0.0001681,2]
[326486377,1714995033655,-500.0,0.0001681,2]
[326486379,1714995033664,-644.23,0.0001681,2]
[326486380,1714995033676,-500.0,0.0001681,2]
[326486383,1714995033686,-500.0,0.0001681,2]
[326486385,1714995033696,-510.68692728,0.0001681,2]
[326486387,1714995033706,-678.67,0.0001681,2]
[326486389,1714995033716,-500.0,0.0001681,2]
[326486391,1714995033726,-1449.65,0.0001681,2]
[326486393,1714995033736,-1862.51,0.0001681,2]
[326486395,1714995033746,-858.31,0.0001681,2]
[326486397,1714995033756,-1121.07,0.0001681,2]
[326486398,1714995033765,-500.0,0.0001681,2]
[326486400,1714995033776,-6801.63,0.0001681,2]
[326486402,1714995033786,-578.68,0.0001681,2]
[326486405,1714995033796,-3669.11,0.0001681,2]
[326486406,1714995033806,-878.66,0.0001681,2]
[326486408,1714995033816,-500.0,0.0001681,2]
[326486410,1714995033826,-500.0,0.0001681,2]
[326486412,1714995033836,-999.54,0.0001681,2]
[326486415,1714995033846,-584.6,0.0001681,2]
[326486416,1714995033855,-500.0,0.0001681,2]
[326486419,1714995033866,-500.0,0.0001681,2]
[326486421,1714995033880,-795.01,0.0001681,2]
[326486422,1714995033890,-500.0,0.0001681,2]
[326486424,1714995033905,-1128.69,0.0001681,2]
[326486426,1714995033915,-500.0,0.0001681,2]
[326486428,1714995033926,-544.65,0.0001681,2]
[326486430,1714995033936,-3657.09,0.0001681,2]
[326486432,1714995033946,-1127.2,0.0001681,2]
[326486434,1714995033957,-154.94620585,0.00016812,2]
[326486436,1714995033967,-550.42296487,0.00016812,2]
[326486438,1714995033978,-1622.84993563,0.00016812,2]
[326486440,1714995033989,-412.46510919,0.00016812,2]
[326486442,1714995034000,-1092.31080328,0.00016812,2]
[326486445,1714995034014,-527.23402412,0.00016812,2]
[326486447,1714995034024,-470.78749571,0.00016812,2]
[326486449,1714995034039,-500.0,0.00016812,2]
[326486451,1714995034050,-500.0,0.00016813,2]
[326486453,1714995034061,-1000.0,0.00016813,2]
[326486455,1714995034072,-500.0,0.00016813,2]
[326486457,1714995034082,-500.0,0.00016813,2]
[326486459,1714995034093,-500.0,0.00016813,2]
[326486461,1714995034103,-500.0,0.00016813,2]
[326486463,1714995034113,-500.0,0.00016813,2]
[326486465,1714995034127,-500.0,0.00016813,2]
[326486467,1714995034140,-500.0,0.00016813,2]
[326486468,1714995034150,-500.0,0.00016813,2]
[326486470,1714995034159,-500.0,0.00016813,2]
[326486472,1714995034169,-500.0,0.00016813,2]
[326486474,1714995034179,-500.0,0.00016813,2]
[326486476,1714995034189,-581.97,0.00016813,2]
[326486478,1714995034199,-580.43609703,0.00016813,2]
[326486480,1714995034209,-500.0,0.00016813,2]
[326486482,1714995034218,-500.0,0.00016813,2]
[326486484,1714995034228,-1213.04,0.00016813,2]
[326486486,1714995034239,-500.0,0.00016813,2]
[326486488,1714995034249,-500.0,0.00016813,2]
[326486490,1714995034259,-500.0,0.00016813,2]
[326486492,1714995034269,-500.0,0.00016813,2]
[326486494,1714995034280,-500.0,0.00016813,2]
[326486496,1714995034291,-517.06586915,0.00016813,2]
[326486498,1714995034301,-500.0,0.00016813,2]
[326486500,1714995034312,-500.0,0.00016813,2]
[326486502,1714995034322,-500.0,0.00016813,2]
[326486504,1714995034332,-651.09,0.00016813,2]
[326486506,1714995034342,-604.87,0.00016813,2]
[326486508,1714995034352,-500.0,0.00016813,2]
[326486510,1714995034362,-500.0,0.00016813,2]
[326486512,1714995034378,-500.0,0.00016813,2]
[326486514,1714995034390,-500.0,0.00016813,2]
[326486516,1714995034400,-360.15365701,0.00016813,2]
[326486518,1714995034410,-643.65,0.00016813,2]
[326486520,1714995034419,-500.0,0.00016813,2]
[326486522,1714995034430,-500.0,0.00016813,2]
[326486524,1714995034440,-500.0,0.00016813,2]
[326486525,1714995034450,-622.71,0.00016813,2]
[326486527,1714995034460,-524.94494214,0.00016813,2]
[326486529,1714995034470,-500.0,0.00016813,2]
[326486532,1714995034481,-500.0,0.00016813,2]
[326486533,1714995034491,-500.35865836,0.00016813,2]
[326486535,1714995034501,-500.0,0.00016813,2]
[326486537,1714995034511,-588.2377178,0.00016813,2]
[326486539,1714995034520,-500.0,0.00016813,2]
[326486541,1714995034530,-500.0,0.00016813,2]
[326486543,1714995034539,-500.0,0.00016813,2]
[326486545,1714995034550,-455.40585621,0.00016813,2]
[326486547,1714995034561,-500.0,0.00016813,2]
[326486549,1714995034571,-500.0,0.00016813,2]
[326486551,1714995034582,-1096.58893785,0.00016813,2]
[326487505,1714995045895,-320.765,0.00016061,2]
[326487519,1714995046290,-58.84761197,0.00016061,2]
[326487520,1714995046300,-379.61261197,0.00016387,2]
[326487521,1714995046309,-230.45936439,0.00016438,2]
[326487522,1714995046318,-49.08041167,0.00016713,2]
[326487523,1714995046330,-330.5322003,0.00016713,2]
[326487524,1714995046341,-500.0,0.0001681,2]
[326487526,1714995046350,-500.0,0.0001681,2]
[326487528,1714995046360,-578.85840671,0.0001681,2]
[326487529,1714995046372,-1036.62035424,0.0001681,2]
[326487530,1714995046388,-570.94966305,0.0001681,2]
[326487531,1714995046402,-191.241576,0.0001681,2]
[326487532,1714995046413,-374.66312813,0.00016813,2]
[326487533,1714995046428,-405.05793402,0.00016813,2]
[326487534,1714995046438,-500.0,0.00016813,2]
[326487535,1714995046448,-151.0,0.00016813,2]
[326487536,1714995046458,-185.68604218,0.00016813,2]
[326487537,1714995046468,-500.0,0.00016813,2]
[326487538,1714995046478,-500.0,0.00016813,2]
[326487539,1714995046488,-500.0,0.00016813,2]
[326487540,1714995046497,-500.0,0.00016813,2]
[326487541,1714995046507,-6812.21,0.00016813,2]
[326487542,1714995046517,-500.0,0.00016813,2]
[326487543,1714995046527,-500.0,0.00016813,2]
[326487544,1714995046536,-586.57,0.00016813,2]
[326487545,1714995046546,-730.62380999,0.00016813,2]
[326487546,1714995046558,-1057.75619001,0.00016813,2]
[326487547,1714995046568,-602.85,0.00016813,2]
[326487548,1714995046577,-565.66,0.00016813,2]
[326487549,1714995046586,-657.59,0.00016813,2]
[326487550,1714995046597,-500.0,0.00016813,2]
[326487551,1714995046610,-500.0,0.00016813,2]
[326487552,1714995046620,-534.28,0.00016813,2]
[326487553,1714995046629,-2485.5,0.00016813,2]
[326487554,1714995046639,-3091.32422544,0.00016813,2]
[326487555,1714995046673,-1509.54653839,0.00016813,2]
[326487557,1714995046789,-3377.57923617,0.00016813,2]
[326487559,1714995046804,-585.81,0.00016813,2]
[326487560,1714995046816,-500.0,0.00016813,2]
[326487561,1714995046827,-500.0,0.00016813,2]
[326487562,1714995046837,-500.0,0.00016813,2]
[326487563,1714995046847,-500.0,0.00016813,2]
[326487564,1714995046857,-500.0,0.00016813,2]
[326487565,1714995046867,-805.35,0.00016813,2]
[326487566,1714995046878,-500.0,0.00016813,2]
[326487567,1714995046889,-500.0,0.00016813,2]
[326487568,1714995046899,-485.28242722,0.00016813,2]
[326487569,1714995046908,-500.0,0.00016813,2]
[326487570,1714995046918,-500.0,0.00016813,2]
[326487571,1714995046928,-10241.24208623,0.00016813,2]
[326487574,1714995048530,-2197.07,0.00016698,2]
[326487575,1714995048541,-448.29791377,0.00016813,2]
[326487576,1714995048551,-500.0,0.00016813,2]
[326487577,1714995048560,-500.0,0.00016813,2]
[326487578,1714995048569,-392.24652727,0.00016814,2]
[326487579,1714995048608,-582.53808868,0.00016814,2]
[326487580,1714995048617,-291.90695137,0.00016814,2]
[326487581,1714995048626,-234.47110401,0.00016814,2]
[326487582,1714995048637,-500.0,0.00016814,2]
[326487583,1714995048648,-500.0,0.00016814,2]
[326487584,1714995048658,-501.31102602,0.00016814,2]
[326487585,1714995048667,-500.0,0.00016814,2]
[326487586,1714995048679,-500.0,0.00016814,2]
[326487587,1714995048688,-6552.29,0.00016814,2]
[326487588,1714995048697,-5643.69641399,0.00016814,2]
[326487858,1714995123848,1080.23623527,9.999e-05,2]
[326487859,1714995124827,816.12984113,9.999e-05,2]
[326487860,1714995152096,154.75239617,9.999e-05,2]
[326487861,1714995159197,154.75239617,9.999e-05,2]
[326487862,1714995162981,475.70095174,9.999e-05,2]
[326487863,1714995177011,793.57313981,9.999e-05,2]
[326487864,1714995186500,154.75239617,9.999e-05,2]
[326487865,1714995187682,154.75239617,9.999e-05,2]
[326487866,1714995192746,224.11435625,9.999e-05,2]
[326487867,1714995204694,224.11435625,9.999e-05,2]
[326487868,1714995223366,224.11435625,9.999e-05,2]
[326487869,1714995240687,224.11435625,9.999e-05,2]
[326487870,1714995262685,224.11435625,9.999e-05,2]
[326487871,1714995280690,224.11435625,9.999e-05,2]
[326487872,1714995319531,224.11435625,9.999e-05,2]
[326487873,1714995333550,224.11435625,9.999e-05,2]
[326487875,1714995353819,224.11435625,9.999e-05,2]
[326487876,1714995370770,267.49175309,9.999e-05,2]
[326487877,1714995494123,930.54019854,9.999e-05,2]
[326487895,1714995625680,154.73694719,9.999e-05,2]
[326487903,1714995846633,154.7215013,9.999e-05,2]
[326487904,1714995853481,500.0,0.00025,60]
[326487905,1714995892650,154.7215013,9.999e-05,2]
[326487907,1714996006127,-3054.9715797,0.00013792,2]
[326487909,1714996006151,-271.34601463,0.00013793,2]
[326487980,1714996234604,-477.08473,0.00013699,2]
[326487981,1714996234615,-134.14518027,0.00013793,2]
[326487983,1714996234628,-3054.9715797,0.00013807,2]
[326487985,1714996234638,-1976.5811144,0.00013808,2]
[326487987,1714996234648,-1512.9285139,0.00013905,2]
[326487989,1714996234658,-24900.0,0.00013962,2]
[326487991,1714996234667,-745.42033975,0.00014084,2]
[326487992,1714996234676,-337.7064729,0.00014123,2]
[326487994,1714996234687,-1147.82888402,0.00015507,2]
[326487997,1714996234721,-163.7450757,0.00015551,2]
[326487999,1714996234746,-293.65353203,0.00015649,2]
[326488001,1714996234756,-154.73694719,0.00015649,2]
[326488003,1714996234766,-1347.30375243,0.00015649,2]
[326488004,1714996234776,-1029.56613901,0.00015649,2]
[326488005,1714996234785,-205.62434312,0.0001565,2]
[326488007,1714996234795,-59281.35797684,0.00015651,2]
[326488008,1714996234804,-418.69406082,0.00016338,2]
[326488009,1714996234814,-418.69406079,0.00016392,2]
[326488010,1714996235012,-500.0,0.00016438,2]
[326488011,1714996235025,-500.0,0.00016438,2]
[326488012,1714996235035,-500.0,0.00016438,2]
[326488013,1714996235045,-500.0,0.00016438,2]
[326488014,1714996235055,-500.0,0.00016438,2]
[326488015,1714996235066,-500.0,0.00016438,2]
[326488016,1714996235077,-504.9108914,0.00016438,2]
[326488017,1714996235086,-500.0,0.00016438,2]
[326488018,1714996235096,-623.96,0.00016438,2]
[326488019,1714996235107,-1162.49,0.00016438,2]
[326488020,1714996235118,-579.67,0.00016438,2]
[326488021,1714996235128,-519.73832343,0.00016438,2]
[326488022,1714996235138,-500.0,0.00016438,2]
[326488023,1714996235150,-500.0,0.00016438,2]
[326488024,1714996235160,-157.53714378,0.00016438,2]
[326488025,1714996235169,-500.0,0.00016438,2]
[326488026,1714996235179,-500.0,0.00016438,2]
[326488027,1714996235188,-5606.36,0.00016438,2]
[326488028,1714996235198,-500.0,0.00016438,2]
[326488029,1714996235208,-500.0,0.00016438,2]
[326488030,1714996235218,-500.0,0.00016438,2]
[326488031,1714996235228,-2837.61,0.00016438,2]
[326488032,1714996235238,-500.0,0.00016438,2]
[326488033,1714996235248,-500.0,0.00016438,2]
[326488034,1714996235258,-500.0,0.00016438,2]
[326488035,1714996235268,-500.0,0.00016438,2]
[326488036,1714996235277,-663.02,0.00016438,2]
[326488037,1714996235287,-596.76,0.00016438,2]
[326488038,1714996235297,-519.82,0.00016438,2]
[326488039,1714996235306,-500.0,0.00016438,2]
[326488040,1714996235315,-500.0,0.00016438,2]
[326488041,1714996235326,-707.07,0.00016438,2]